[Event "*** Titled Tuesday Blitz"]
[Site "Chess.com"]
[Date "2020.10.20"]
[Round "8"]
[White "GelmanAlexander"]
[Black "Ladislav1969"]
[Result "0-1"]
[WhiteElo "2575"]
[BlackElo "2435"]
[TimeControl "180+1"]
[EndTime "11:37:16 PDT"]
[Termination "Ladislav1969 won by checkmate"]

1. d4 {[%clk 0:03:00.9]} 1... Nf6 {[%clk 0:03:00]} 2. Nc3 {[%clk 0:03:00.8]}
2... d5 {[%clk 0:02:58.6]} 3. Bf4 {[%clk 0:03:01]} 3... g6 {[%clk 0:02:57.7]} 4.
e3 {[%clk 0:03:01.1]} 4... Bg7 {[%clk 0:02:57.7]} 5. h4 {[%clk 0:03:01.7]} 5...
c6 {[%clk 0:02:49.5]} 6. Be2 {[%clk 0:02:43.1]} 6... h5 {[%clk 0:02:47.5]} 7.
Nf3 {[%clk 0:02:42.9]} 7... Bg4 {[%clk 0:02:43.1]} 8. Ne5 {[%clk 0:02:43]} 8...
Bxe2 {[%clk 0:02:40.8]} 9. Qxe2 {[%clk 0:02:43.9]} 9... Nbd7 {[%clk 0:02:27.5]}
10. O-O-O {[%clk 0:02:44.1]} 10... Qa5 {[%clk 0:02:15.2]} 11. Kb1 {[%clk
0:02:43.2]} 11... Rc8 {[%clk 0:02:07.9]} 12. e4 {[%clk 0:02:15.5]} 12... Nxe5
{[%clk 0:01:25.1]} 13. Bxe5 {[%clk 0:02:12.4]} 13... O-O {[%clk 0:01:25]} 14. f3
{[%clk 0:02:01.8]} 14... b5 {[%clk 0:01:17.6]} 15. Qe3 {[%clk 0:01:53.2]} 15...
b4 {[%clk 0:01:14.8]} 16. Ne2 {[%clk 0:01:53.3]} 16... dxe4 {[%clk 0:01:00.3]}
17. Bxf6 {[%clk 0:01:39.4]} 17... Bxf6 {[%clk 0:01:00.1]} 18. fxe4 {[%clk
0:01:39.8]} 18... c5 {[%clk 0:01:00.3]} 19. d5 {[%clk 0:01:20]} 19... Qc7 {[%clk
0:00:55.5]} 20. g4 {[%clk 0:01:18.4]} 20... Qe5 {[%clk 0:00:54.7]} 21. c3 {[%clk
0:01:18.6]} 21... bxc3 {[%clk 0:00:54.2]} 22. Nxc3 {[%clk 0:01:18.6]} 22... hxg4
{[%clk 0:00:47]} 23. h5 {[%clk 0:01:18.3]} 23... g5 {[%clk 0:00:42.9]} 24. Rhf1
{[%clk 0:01:14.9]} 24... Rb8 {[%clk 0:00:35.2]} 25. Ka1 {[%clk 0:01:13.4]} 25...
Rb4 {[%clk 0:00:29]} 26. Rf5 {[%clk 0:01:10.6]} 26... Qh2 {[%clk 0:00:28.6]} 27.
Rf2 {[%clk 0:01:01.9]} 27... Qe5 {[%clk 0:00:25.7]} 28. d6 {[%clk 0:00:57.2]}
28... exd6 {[%clk 0:00:23.2]} 29. Rxd6 {[%clk 0:00:51.1]} 29... Qxd6 {[%clk
0:00:19.5]} 30. Nd5 {[%clk 0:00:51.4]} 30... Rd4 {[%clk 0:00:17.8]} 31. Nxf6+
{[%clk 0:00:50.6]} 31... Qxf6 {[%clk 0:00:17.3]} 32. a3 {[%clk 0:00:41.6]} 32...
Qe5 {[%clk 0:00:17]} 33. Rf5 {[%clk 0:00:41.3]} 33... Rd1+ {[%clk 0:00:13.2]}
34. Ka2 {[%clk 0:00:41.3]} 34... Qe6+ {[%clk 0:00:13.3]} 35. b3 {[%clk
0:00:41.9]} 35... f6 {[%clk 0:00:13.8]} 36. Rxc5 {[%clk 0:00:36]} 36... Rfd8
{[%clk 0:00:13.5]} 37. a4 {[%clk 0:00:35.4]} 37... R8d2+ {[%clk 0:00:13.2]} 38.
Ka3 {[%clk 0:00:35.9]} 38... Ra1+ {[%clk 0:00:12.7]} 39. Kb4 {[%clk 0:00:35.9]}
39... Qb6+ {[%clk 0:00:11.6]} 40. Kc3 {[%clk 0:00:36.2]} 40... Rdd1 {[%clk
0:00:09.1]} 41. Rc8+ {[%clk 0:00:26.2]} 41... Kg7 {[%clk 0:00:08.7]} 42. h6+
{[%clk 0:00:25.8]} 42... Kxh6 {[%clk 0:00:07]} 43. Qg3 {[%clk 0:00:10.1]} 43...
Rac1+ {[%clk 0:00:06.1]} 44. Kb2 {[%clk 0:00:09.9]} 44... Qd4+ {[%clk
0:00:05.7]} 45. Ka3 {[%clk 0:00:09.9]} 45... Ra1# {[%clk 0:00:05.3]} 0-1

[Event "*** Titled Tuesday Blitz"]
[Site "Chess.com"]
[Date "2020.10.20"]
[Round "8"]
[White "Shield12"]
[Black "ftorodent"]
[Result "1-0"]
[WhiteElo "2824"]
[BlackElo "2666"]
[TimeControl "180+1"]
[EndTime "11:37:19 PDT"]
[Termination "Shield12 won by resignation"]

1. e4 {[%clk 0:03:00.9]} 1... e6 {[%clk 0:02:59.6]} 2. d4 {[%clk 0:03:00.8]}
2... d5 {[%clk 0:02:59.5]} 3. Nd2 {[%clk 0:03:01.5]} 3... Nf6 {[%clk 0:02:59]}
4. e5 {[%clk 0:03:01.1]} 4... Ne4 {[%clk 0:02:59]} 5. Nxe4 {[%clk 0:03:00.6]}
5... dxe4 {[%clk 0:02:59.1]} 6. Bc4 {[%clk 0:03:01.3]} 6... a6 {[%clk 0:02:59]}
7. a4 {[%clk 0:03:01.2]} 7... b6 {[%clk 0:02:59]} 8. Ne2 {[%clk 0:03:01.2]} 8...
Bb7 {[%clk 0:02:58.9]} 9. Nf4 {[%clk 0:03:01.5]} 9... Nc6 {[%clk 0:02:26.9]} 10.
c3 {[%clk 0:02:59.1]} 10... Ne7 {[%clk 0:02:24.6]} 11. O-O {[%clk 0:02:50.7]}
11... g6 {[%clk 0:02:19.5]} 12. Qe2 {[%clk 0:02:27]} 12... Qd7 {[%clk
0:02:17.9]} 13. Rd1 {[%clk 0:02:19.8]} 13... Bg7 {[%clk 0:01:42.4]} 14. h4
{[%clk 0:02:14.3]} 14... h6 {[%clk 0:01:38.2]} 15. Qg4 {[%clk 0:02:11]} 15... h5
{[%clk 0:01:25.5]} 16. Qe2 {[%clk 0:02:10.9]} 16... Nf5 {[%clk 0:01:24]} 17. d5
{[%clk 0:02:04.3]} 17... Rd8 {[%clk 0:00:46.8]} 18. Be3 {[%clk 0:01:57]} 18...
exd5 {[%clk 0:00:45.3]} 19. Bxd5 {[%clk 0:01:55.3]} 19... Bxd5 {[%clk 0:00:44]}
20. Nxd5 {[%clk 0:01:54.6]} 20... Qc6 {[%clk 0:00:40.1]} 21. Nb4 {[%clk
0:01:49.6]} 21... Qa8 {[%clk 0:00:38.2]} 22. Rxd8+ {[%clk 0:01:45.5]} 22... Qxd8
{[%clk 0:00:38.2]} 23. Bg5 {[%clk 0:01:45]} 23... Qa8 {[%clk 0:00:28.5]} 24.
Nxa6 {[%clk 0:01:44.3]} 24... O-O {[%clk 0:00:27.8]} 25. Nxc7 {[%clk 0:01:43.8]}
25... Qc6 {[%clk 0:00:27.7]} 26. Nb5 {[%clk 0:01:37.7]} 26... e3 {[%clk
0:00:26.7]} 27. Bxe3 {[%clk 0:01:20.1]} 27... Nxh4 {[%clk 0:00:26.8]} 28. f4
{[%clk 0:01:18.4]} 28... Rd8 {[%clk 0:00:23.8]} 29. Nd4 {[%clk 0:01:15.6]} 29...
Qe4 {[%clk 0:00:23.7]} 30. Re1 {[%clk 0:01:13.1]} 30... Bh6 {[%clk 0:00:21]} 31.
Bc1 {[%clk 0:01:01.2]} 31... Qd5 {[%clk 0:00:18.8]} 32. e6 {[%clk 0:00:57.7]}
32... fxe6 {[%clk 0:00:16]} 33. Qxe6+ {[%clk 0:00:56.8]} 33... Qxe6 {[%clk
0:00:15.9]} 34. Rxe6 {[%clk 0:00:57.7]} 34... Bg7 {[%clk 0:00:15.8]} 35. Be3
{[%clk 0:00:54.2]} 35... Kf7 {[%clk 0:00:13.6]} 36. Rxb6 {[%clk 0:00:53.8]}
36... Re8 {[%clk 0:00:14]} 37. Bf2 {[%clk 0:00:52]} 37... Bxd4 {[%clk
0:00:13.3]} 38. Rb7+ {[%clk 0:00:45.3]} 38... Ke6 {[%clk 0:00:11.3]} 39. Bxd4
{[%clk 0:00:44.5]} 39... Nf5 {[%clk 0:00:11.5]} 40. Rb6+ {[%clk 0:00:43.2]}
40... Kd5 {[%clk 0:00:11.5]} 41. Rxg6 {[%clk 0:00:40.2]} 41... Re2 {[%clk
0:00:10]} 42. b4 {[%clk 0:00:38.1]} 42... h4 {[%clk 0:00:10.1]} 43. Kh2 {[%clk
0:00:36.1]} 43... Re1 {[%clk 0:00:09.4]} 44. a5 {[%clk 0:00:32.5]} 44... Ra1
{[%clk 0:00:07.1]} 45. a6 {[%clk 0:00:31.8]} 45... Ke4 {[%clk 0:00:06.6]} 46. b5
{[%clk 0:00:28.8]} 46... Kxf4 {[%clk 0:00:06.4]} 47. Rf6 {[%clk 0:00:27.8]}
47... Kg5 {[%clk 0:00:06.1]} 48. Rxf5+ {[%clk 0:00:27.9]} 48... Kxf5 {[%clk
0:00:06.3]} 49. a7 {[%clk 0:00:28.3]} 49... Ke6 {[%clk 0:00:05]} 50. b6 {[%clk
0:00:28.6]} 1-0

[Event "*** Titled Tuesday Blitz"]
[Site "Chess.com"]
[Date "2020.10.20"]
[Round "8"]
[White "TheCastleHunter"]
[Black "coco_crc"]
[Result "1-0"]
[WhiteElo "2366"]
[BlackElo "2194"]
[TimeControl "180+1"]
[EndTime "11:37:21 PDT"]
[Termination "TheCastleHunter won by resignation"]

1. e4 {[%clk 0:03:00.9]} 1... e5 {[%clk 0:02:59.6]} 2. Nf3 {[%clk 0:03:00.6]}
2... Nc6 {[%clk 0:02:59.2]} 3. Bc4 {[%clk 0:02:59.4]} 3... Be7 {[%clk
0:02:57.8]} 4. O-O {[%clk 0:02:58.7]} 4... Nf6 {[%clk 0:02:57.4]} 5. Re1 {[%clk
0:02:57.3]} 5... Nxe4 {[%clk 0:02:57.2]} 6. Rxe4 {[%clk 0:02:53.9]} 6... d5
{[%clk 0:02:57.1]} 7. Bxd5 {[%clk 0:02:52.7]} 7... Qxd5 {[%clk 0:02:57.6]} 8.
Nc3 {[%clk 0:02:53.5]} 8... Qd6 {[%clk 0:02:57.6]} 9. Re1 {[%clk 0:02:45.8]}
9... O-O {[%clk 0:02:55.4]} 10. d3 {[%clk 0:02:45.4]} 10... Bg4 {[%clk
0:02:52.4]} 11. h3 {[%clk 0:02:43.5]} 11... Bh5 {[%clk 0:02:51.8]} 12. Ne4
{[%clk 0:02:43]} 12... Qd7 {[%clk 0:02:46]} 13. Ng3 {[%clk 0:02:42.9]} 13... Bg6
{[%clk 0:02:45]} 14. Bd2 {[%clk 0:02:31.5]} 14... f6 {[%clk 0:02:43.2]} 15. Bc3
{[%clk 0:02:29.9]} 15... Rad8 {[%clk 0:02:42.5]} 16. Qe2 {[%clk 0:02:29.3]}
16... Bc5 {[%clk 0:02:42.5]} 17. Rad1 {[%clk 0:02:26.6]} 17... Rfe8 {[%clk
0:02:40.4]} 18. Kh1 {[%clk 0:02:22.7]} 18... Kh8 {[%clk 0:02:39.3]} 19. Nh4
{[%clk 0:02:20.5]} 19... Bf7 {[%clk 0:02:34.8]} 20. Ne4 {[%clk 0:02:08.6]} 20...
Bb6 {[%clk 0:02:27.7]} 21. Qf3 {[%clk 0:02:08.7]} 21... Bd5 {[%clk 0:02:16.6]}
22. Qh5 {[%clk 0:02:06.9]} 22... Qf7 {[%clk 0:02:11.2]} 23. Qf3 {[%clk 0:01:57]}
23... Qd7 {[%clk 0:02:09.8]} 24. Qh5 {[%clk 0:01:46]} 24... Qf7 {[%clk
0:02:09.8]} 25. Qf3 {[%clk 0:01:44.9]} 25... Nd4 {[%clk 0:02:04.9]} 26. Bxd4
{[%clk 0:01:43]} 26... Bxd4 {[%clk 0:02:05.8]} 27. c3 {[%clk 0:01:39.8]} 27...
Bb6 {[%clk 0:02:04.3]} 28. c4 {[%clk 0:01:38.7]} 28... Bc6 {[%clk 0:01:43.4]}
29. b4 {[%clk 0:01:36]} 29... Bd4 {[%clk 0:01:40.3]} 30. b5 {[%clk 0:01:34.4]}
30... Bd7 {[%clk 0:01:38.7]} 31. Ng5 {[%clk 0:01:30.3]} 31... Qe7 {[%clk
0:01:19.2]} 32. Qh5 {[%clk 0:01:29.5]} 32... fxg5 {[%clk 0:01:01.5]} 33. Ng6+
{[%clk 0:01:27.4]} 33... Kg8 {[%clk 0:01:02]} 34. Nxe7+ {[%clk 0:01:27.7]} 34...
Rxe7 {[%clk 0:01:02.6]} 35. Qxg5 {[%clk 0:01:28.2]} 35... Rde8 {[%clk 0:01:02]}
36. f4 {[%clk 0:01:26.7]} 36... h6 {[%clk 0:00:56.7]} 37. Qg6 {[%clk 0:01:21.9]}
37... Re6 {[%clk 0:00:49.7]} 38. Qh5 {[%clk 0:01:21.5]} 38... c6 {[%clk
0:00:45.8]} 39. bxc6 {[%clk 0:01:14.6]} 39... Bxc6 {[%clk 0:00:46.7]} 40. fxe5
{[%clk 0:01:14.8]} 40... Rxe5 {[%clk 0:00:45.8]} 41. Rxe5 {[%clk 0:01:13.9]}
41... Rxe5 {[%clk 0:00:46.7]} 42. Qg4 {[%clk 0:00:48]} 42... Bb6 {[%clk
0:00:43.4]} 43. h4 {[%clk 0:00:43.8]} 43... Kh7 {[%clk 0:00:26.1]} 44. Rf1
{[%clk 0:00:27.9]} 44... Ra5 {[%clk 0:00:21.5]} 45. Qe2 {[%clk 0:00:20.6]} 45...
Bc5 {[%clk 0:00:14.4]} 46. d4 {[%clk 0:00:20.6]} 46... Bxd4 {[%clk 0:00:12.8]}
47. Qd3+ {[%clk 0:00:20.9]} 1-0

[Event "*** Titled Tuesday Blitz"]
[Site "Chess.com"]
[Date "2020.10.20"]
[Round "8"]
[White "paulrusan"]
[Black "Ajedrez_con_German"]
[Result "0-1"]
[WhiteElo "2236"]
[BlackElo "2454"]
[TimeControl "180+1"]
[EndTime "11:37:23 PDT"]
[Termination "Ajedrez_con_German won by checkmate"]

1. e4 {[%clk 0:03:00.9]} 1... e6 {[%clk 0:01:50.9]} 2. d3 {[%clk 0:02:59]} 2...
c5 {[%clk 0:01:50.6]} 3. Nf3 {[%clk 0:02:57.4]} 3... Nc6 {[%clk 0:01:51]} 4. g3
{[%clk 0:02:56.9]} 4... g6 {[%clk 0:01:51.5]} 5. Bg2 {[%clk 0:02:56.4]} 5... Bg7
{[%clk 0:01:52.1]} 6. O-O {[%clk 0:02:55.7]} 6... Nge7 {[%clk 0:01:52]} 7. c3
{[%clk 0:02:53.9]} 7... e5 {[%clk 0:01:50.8]} 8. a3 {[%clk 0:02:52.3]} 8... d6
{[%clk 0:01:51.3]} 9. b4 {[%clk 0:02:51.4]} 9... O-O {[%clk 0:01:51.3]} 10. Nbd2
{[%clk 0:02:49.7]} 10... h6 {[%clk 0:01:51.6]} 11. Bb2 {[%clk 0:02:47.3]} 11...
Be6 {[%clk 0:01:49.2]} 12. b5 {[%clk 0:02:31.6]} 12... Na5 {[%clk 0:01:39.7]}
13. a4 {[%clk 0:02:11.2]} 13... Qd7 {[%clk 0:01:32.3]} 14. d4 {[%clk 0:02:10.3]}
14... Bh3 {[%clk 0:01:20.2]} 15. Qe2 {[%clk 0:01:48.6]} 15... Bxg2 {[%clk
0:01:19.4]} 16. Kxg2 {[%clk 0:01:48.9]} 16... Kh7 {[%clk 0:01:06.8]} 17. dxc5
{[%clk 0:01:48.3]} 17... dxc5 {[%clk 0:01:06.6]} 18. Rfd1 {[%clk 0:01:48.8]}
18... Qe6 {[%clk 0:01:02.8]} 19. Ne1 {[%clk 0:01:26.9]} 19... Rfd8 {[%clk
0:01:00.5]} 20. Nc2 {[%clk 0:01:25.4]} 20... Rd7 {[%clk 0:00:48.8]} 21. Ne3
{[%clk 0:01:25.1]} 21... Rad8 {[%clk 0:00:48]} 22. Ndc4 {[%clk 0:01:18.2]} 22...
Nxc4 {[%clk 0:00:46.1]} 23. Rxd7 {[%clk 0:01:15.9]} 23... Nxe3+ {[%clk
0:00:45.2]} 24. Qxe3 {[%clk 0:01:09.9]} 24... Qxd7 {[%clk 0:00:42.5]} 25. Qxc5
{[%clk 0:01:09.7]} 25... b6 {[%clk 0:00:43.1]} 26. Qc4 {[%clk 0:01:07.7]} 26...
Nc8 {[%clk 0:00:35.3]} 27. Ba3 {[%clk 0:01:02.1]} 27... Bf8 {[%clk 0:00:28.5]}
28. Bxf8 {[%clk 0:01:01.1]} 28... Rxf8 {[%clk 0:00:29.4]} 29. a5 {[%clk
0:00:58.7]} 29... Rd8 {[%clk 0:00:29.1]} 30. axb6 {[%clk 0:00:58.4]} 30... axb6
{[%clk 0:00:30]} 31. Ra8 {[%clk 0:00:56.4]} 31... Nd6 {[%clk 0:00:28]} 32. Rxd8
{[%clk 0:00:54.6]} 32... Qxd8 {[%clk 0:00:28.9]} 33. Qc6 {[%clk 0:00:54.7]}
33... Kg7 {[%clk 0:00:20.5]} 34. f3 {[%clk 0:00:54.4]} 34... Ne8 {[%clk
0:00:19.4]} 35. f4 {[%clk 0:00:46.4]} 35... exf4 {[%clk 0:00:18.6]} 36. gxf4
{[%clk 0:00:46.5]} 36... Nf6 {[%clk 0:00:19]} 37. e5 {[%clk 0:00:44.1]} 37...
Qd2+ {[%clk 0:00:16.9]} 38. Kf3 {[%clk 0:00:44.2]} 38... Qd3+ {[%clk 0:00:16.9]}
39. Kg2 {[%clk 0:00:42.3]} 39... Ne4 {[%clk 0:00:15.6]} 40. Qxb6 {[%clk
0:00:41.7]} 40... Nxc3 {[%clk 0:00:14.9]} 41. Qf6+ {[%clk 0:00:37.3]} 41... Kg8
{[%clk 0:00:15.1]} 42. e6 {[%clk 0:00:36.8]} 42... Qd5+ {[%clk 0:00:13.1]} 43.
Kf1 {[%clk 0:00:30.9]} 43... Qd1+ {[%clk 0:00:11]} 44. Kg2 {[%clk 0:00:28.9]}
44... Qe2+ {[%clk 0:00:10.8]} 45. Kg1 {[%clk 0:00:27.2]} 45... Qe3+ {[%clk
0:00:09.7]} 46. Kf1 {[%clk 0:00:24.2]} 46... Qe2+ {[%clk 0:00:08.8]} 47. Kg1
{[%clk 0:00:24.1]} 47... Qg4+ {[%clk 0:00:08.8]} 48. Kf1 {[%clk 0:00:22.5]}
48... Qf3+ {[%clk 0:00:08.6]} 49. Ke1 {[%clk 0:00:13.2]} 49... Qe2# {[%clk
0:00:08.5]} 0-1

[Event "*** Titled Tuesday Blitz"]
[Site "Chess.com"]
[Date "2020.10.20"]
[Round "8"]
[White "kai_nov"]
[Black "Zhani-Z"]
[Result "0-1"]
[WhiteElo "2285"]
[BlackElo "2537"]
[TimeControl "180+1"]
[EndTime "11:37:24 PDT"]
[Termination "Zhani-Z won on time"]

1. d4 {[%clk 0:03:00.9]} 1... Nf6 {[%clk 0:02:58.8]} 2. c4 {[%clk 0:03:00.3]}
2... e6 {[%clk 0:02:55.5]} 3. Nc3 {[%clk 0:02:59.3]} 3... Bb4 {[%clk 0:02:52.9]}
4. f3 {[%clk 0:02:58.6]} 4... c5 {[%clk 0:02:51.4]} 5. d5 {[%clk 0:02:58.4]}
5... b5 {[%clk 0:02:38.5]} 6. e4 {[%clk 0:02:56.7]} 6... d6 {[%clk 0:02:38.6]}
7. a3 {[%clk 0:02:43.9]} 7... Bxc3+ {[%clk 0:02:37.6]} 8. bxc3 {[%clk
0:02:43.5]} 8... bxc4 {[%clk 0:02:31.7]} 9. Bxc4 {[%clk 0:02:38.8]} 9... Qa5
{[%clk 0:02:02.4]} 10. Ne2 {[%clk 0:02:35.7]} 10... Ba6 {[%clk 0:01:58.1]} 11.
Bxa6 {[%clk 0:02:24.5]} 11... Qxa6 {[%clk 0:01:58.1]} 12. Bg5 {[%clk 0:02:20.3]}
12... Nbd7 {[%clk 0:01:57.3]} 13. O-O {[%clk 0:02:05.2]} 13... O-O {[%clk
0:01:56.1]} 14. Ng3 {[%clk 0:01:50.5]} 14... exd5 {[%clk 0:01:03.5]} 15. exd5
{[%clk 0:01:47.7]} 15... g6 {[%clk 0:01:03.6]} 16. Qd2 {[%clk 0:01:39.9]} 16...
Qc4 {[%clk 0:00:59.5]} 17. Rad1 {[%clk 0:01:33.5]} 17... Rfe8 {[%clk 0:00:54.4]}
18. h4 {[%clk 0:01:17.6]} 18... Re5 {[%clk 0:00:46.5]} 19. Qf4 {[%clk
0:01:03.2]} 19... Qxf4 {[%clk 0:00:39.5]} 20. Bxf4 {[%clk 0:01:03.3]} 20... Rxd5
{[%clk 0:00:39.8]} 21. Bxd6 {[%clk 0:01:00.3]} 21... Re8 {[%clk 0:00:25.5]} 22.
c4 {[%clk 0:00:46.1]} 22... Rxd1 {[%clk 0:00:23.6]} 23. Rxd1 {[%clk 0:00:45.6]}
23... Re3 {[%clk 0:00:23.7]} 24. h5 {[%clk 0:00:39.7]} 24... Kg7 {[%clk
0:00:19.3]} 25. h6+ {[%clk 0:00:37.7]} 25... Kg8 {[%clk 0:00:17.8]} 26. Ne4
{[%clk 0:00:31.5]} 26... Nxe4 {[%clk 0:00:16.2]} 27. fxe4 {[%clk 0:00:31.7]}
27... f6 {[%clk 0:00:13.9]} 28. Bc7 {[%clk 0:00:23.7]} 28... Nb6 {[%clk
0:00:06.9]} 29. Bxb6 {[%clk 0:00:18.5]} 29... axb6 {[%clk 0:00:07.8]} 30. Rd6
{[%clk 0:00:18.6]} 30... Rxe4 {[%clk 0:00:06.6]} 31. Rxf6 {[%clk 0:00:18.1]}
31... Rxc4 {[%clk 0:00:06.6]} 32. Rxb6 {[%clk 0:00:18.2]} 32... Ra4 {[%clk
0:00:06.8]} 33. Rb7 {[%clk 0:00:14.6]} 33... c4 {[%clk 0:00:06.5]} 34. Rg7+
{[%clk 0:00:13.9]} 34... Kf8 {[%clk 0:00:06.7]} 35. Rxh7 {[%clk 0:00:13.9]}
35... Rxa3 {[%clk 0:00:07]} 36. Rc7 {[%clk 0:00:12.3]} 36... Kg8 {[%clk
0:00:05.9]} 37. Kf2 {[%clk 0:00:04.6]} 37... Ra5 {[%clk 0:00:05.6]} 38. g4
{[%clk 0:00:03.9]} 38... g5 {[%clk 0:00:04.8]} 39. Ke3 {[%clk 0:00:02.7]} 39...
Ra3+ {[%clk 0:00:04.1]} 40. Ke4 {[%clk 0:00:02]} 40... Ra5 {[%clk 0:00:04.4]}
0-1

[Event "*** Titled Tuesday Blitz"]
[Site "Chess.com"]
[Date "2020.10.20"]
[Round "8"]
[White "GM_Levan_Pantsulaia"]
[Black "Azerichess"]
[Result "0-1"]
[WhiteElo "2857"]
[BlackElo "2978"]
[TimeControl "180+1"]
[EndTime "11:37:25 PDT"]
[Termination "Azerichess won by resignation"]

1. Nf3 {[%clk 0:03:00.9]} 1... Nf6 {[%clk 0:03:00]} 2. g3 {[%clk 0:03:00.3]}
2... g6 {[%clk 0:02:58.1]} 3. b3 {[%clk 0:02:58.8]} 3... Bg7 {[%clk 0:02:59]} 4.
Bb2 {[%clk 0:02:57.5]} 4... O-O {[%clk 0:02:59.9]} 5. Bg2 {[%clk 0:02:57.6]}
5... d5 {[%clk 0:03:00.1]} 6. c4 {[%clk 0:02:56.3]} 6... Nc6 {[%clk 0:02:59.1]}
7. O-O {[%clk 0:02:45.1]} 7... d4 {[%clk 0:02:58.4]} 8. d3 {[%clk 0:02:40.7]}
8... a5 {[%clk 0:02:54.5]} 9. Na3 {[%clk 0:02:32.7]} 9... e5 {[%clk 0:02:54.1]}
10. Nb5 {[%clk 0:02:32.5]} 10... Re8 {[%clk 0:02:53.1]} 11. e3 {[%clk
0:02:20.9]} 11... dxe3 {[%clk 0:02:40.8]} 12. fxe3 {[%clk 0:02:21.8]} 12... Ng4
{[%clk 0:02:41.4]} 13. Qe2 {[%clk 0:02:17.1]} 13... Bh6 {[%clk 0:02:41.6]} 14.
Bc1 {[%clk 0:02:12.3]} 14... e4 {[%clk 0:02:36.1]} 15. dxe4 {[%clk 0:02:06.8]}
15... Rxe4 {[%clk 0:02:37]} 16. Ng5 {[%clk 0:01:56.7]} 16... Re7 {[%clk
0:02:36.1]} 17. e4 {[%clk 0:01:51.4]} 17... Nd4 {[%clk 0:02:31.9]} 18. Qd3
{[%clk 0:01:43.9]} 18... Bg7 {[%clk 0:02:31.8]} 19. Bb2 {[%clk 0:01:40.2]} 19...
c5 {[%clk 0:02:31.2]} 20. Nxd4 {[%clk 0:01:32.6]} 20... cxd4 {[%clk 0:02:32.1]}
21. Nf3 {[%clk 0:01:23]} 21... Ne3 {[%clk 0:02:27.8]} 22. Rf2 {[%clk 0:01:23]}
22... Bg4 {[%clk 0:02:10.4]} 23. Nxd4 {[%clk 0:01:17.7]} 23... Nxg2 {[%clk
0:02:10.4]} 24. Kxg2 {[%clk 0:01:16.6]} 24... Rd7 {[%clk 0:02:10.7]} 25. Rd2
{[%clk 0:01:11.8]} 25... Qb6 {[%clk 0:01:58.4]} 26. h3 {[%clk 0:00:59.9]} 26...
Rad8 {[%clk 0:01:56]} 27. Qe3 {[%clk 0:00:45.2]} 27... Bxd4 {[%clk 0:01:53.5]}
28. Bxd4 {[%clk 0:00:42.1]} 28... Rxd4 {[%clk 0:01:53]} 29. Rxd4 {[%clk
0:00:41.4]} 29... Bxh3+ {[%clk 0:01:53.2]} 30. Kxh3 {[%clk 0:00:39.1]} 30...
Rxd4 {[%clk 0:01:53.4]} 31. Re1 {[%clk 0:00:36.8]} 31... a4 {[%clk 0:01:52.6]}
32. e5 {[%clk 0:00:33]} 32... Qe6+ {[%clk 0:01:48.4]} 33. Kg2 {[%clk 0:00:32.3]}
33... Rd7 {[%clk 0:01:44]} 34. Re2 {[%clk 0:00:31.4]} 34... a3 {[%clk
0:01:40.4]} 35. Qf3 {[%clk 0:00:27.1]} 35... h5 {[%clk 0:01:40.2]} 36. Qf6
{[%clk 0:00:25.5]} 36... Rd3 {[%clk 0:01:27.3]} 37. Qxe6 {[%clk 0:00:19.9]}
37... fxe6 {[%clk 0:01:28.2]} 38. Rc2 {[%clk 0:00:19.7]} 38... g5 {[%clk
0:00:57.5]} 39. Kf2 {[%clk 0:00:19.1]} 39... Kg7 {[%clk 0:00:56.4]} 40. c5
{[%clk 0:00:18.6]} 40... Rd4 {[%clk 0:00:40.7]} 41. Ke3 {[%clk 0:00:15.7]} 41...
Rg4 {[%clk 0:00:34.8]} 42. Kf3 {[%clk 0:00:15.9]} 42... Rd4 {[%clk 0:00:35.2]}
43. Ke3 {[%clk 0:00:15.3]} 43... Rd1 {[%clk 0:00:35.6]} 44. b4 {[%clk 0:00:09]}
44... Rb1 {[%clk 0:00:35.4]} 45. Rc3 {[%clk 0:00:06.1]} 45... Rxb4 {[%clk
0:00:35.6]} 46. Rxa3 {[%clk 0:00:06.1]} 46... Kg6 {[%clk 0:00:34.3]} 47. Rb3
{[%clk 0:00:04.1]} 47... Rxb3+ {[%clk 0:00:33.5]} 48. axb3 {[%clk 0:00:05]}
48... Kf5 {[%clk 0:00:34.2]} 49. Kd4 {[%clk 0:00:02.8]} 49... h4 {[%clk
0:00:33.4]} 50. gxh4 {[%clk 0:00:03.7]} 50... gxh4 {[%clk 0:00:33.7]} 51. Ke3
{[%clk 0:00:04.2]} 51... Kxe5 {[%clk 0:00:33.8]} 52. b4 {[%clk 0:00:03.7]} 52...
Kd5 {[%clk 0:00:34.3]} 0-1

[Event "*** Titled Tuesday Blitz"]
[Site "Chess.com"]
[Date "2020.10.20"]
[Round "8"]
[White "Fortitudine"]
[Black "Qvalda"]
[Result "0-1"]
[WhiteElo "2283"]
[BlackElo "2408"]
[TimeControl "180+1"]
[EndTime "11:37:25 PDT"]
[Termination "Qvalda won on time"]

1. c4 {[%clk 0:03:00.9]} 1... g6 {[%clk 0:02:59.5]} 2. g3 {[%clk 0:03:00.2]}
2... Bg7 {[%clk 0:02:56.9]} 3. Bg2 {[%clk 0:02:59.8]} 3... d6 {[%clk 0:02:56.2]}
4. Nc3 {[%clk 0:02:59.6]} 4... e5 {[%clk 0:02:55.4]} 5. e4 {[%clk 0:02:56]} 5...
c5 {[%clk 0:02:51.5]} 6. Nge2 {[%clk 0:02:55.5]} 6... Nc6 {[%clk 0:02:51.7]} 7.
O-O {[%clk 0:02:55.3]} 7... Nge7 {[%clk 0:02:51.1]} 8. d3 {[%clk 0:02:55.3]}
8... O-O {[%clk 0:02:51]} 9. Nd5 {[%clk 0:02:48.5]} 9... Bg4 {[%clk 0:02:44.6]}
10. f3 {[%clk 0:02:40.7]} 10... Be6 {[%clk 0:02:43.9]} 11. Bg5 {[%clk
0:02:35.7]} 11... f6 {[%clk 0:02:43.9]} 12. Be3 {[%clk 0:02:35.5]} 12... Nd4
{[%clk 0:02:44]} 13. Qd2 {[%clk 0:02:31.6]} 13... Nxd5 {[%clk 0:02:42.2]} 14.
cxd5 {[%clk 0:02:31.3]} 14... Bd7 {[%clk 0:02:42.5]} 15. Rfc1 {[%clk 0:01:47.7]}
15... b5 {[%clk 0:02:32.9]} 16. Nxd4 {[%clk 0:01:30.8]} 16... exd4 {[%clk
0:02:30.5]} 17. Bh6 {[%clk 0:01:28.9]} 17... g5 {[%clk 0:02:24.8]} 18. Bxg7
{[%clk 0:01:28.1]} 18... Kxg7 {[%clk 0:02:25.7]} 19. b4 {[%clk 0:01:22.4]} 19...
Qe7 {[%clk 0:02:14.3]} 20. bxc5 {[%clk 0:01:11.6]} 20... dxc5 {[%clk 0:02:15.2]}
21. Qa5 {[%clk 0:01:07.4]} 21... h5 {[%clk 0:02:08.7]} 22. a4 {[%clk 0:01:00.8]}
22... a6 {[%clk 0:01:58.9]} 23. Qc7 {[%clk 0:00:28.2]} 23... Rfc8 {[%clk
0:01:49.9]} 24. Qb6 {[%clk 0:00:28.4]} 24... bxa4 {[%clk 0:01:38.9]} 25. f4
{[%clk 0:00:20.3]} 25... gxf4 {[%clk 0:01:20.4]} 26. gxf4 {[%clk 0:00:20.2]}
26... Bb5 {[%clk 0:01:14.7]} 27. Bh3 {[%clk 0:00:17.8]} 27... Rab8 {[%clk
0:01:01]} 28. Qa5 {[%clk 0:00:15.6]} 28... Qc7 {[%clk 0:00:56]} 29. Qxc7+ {[%clk
0:00:14.5]} 29... Rxc7 {[%clk 0:00:56.9]} 30. Rd1 {[%clk 0:00:10.8]} 30... Rd8
{[%clk 0:00:53.1]} 31. Kf2 {[%clk 0:00:10.5]} 31... Kf7 {[%clk 0:00:41]} 32.
Be6+ {[%clk 0:00:10]} 32... Ke7 {[%clk 0:00:41.1]} 33. Ke2 {[%clk 0:00:07.8]}
33... Kd6 {[%clk 0:00:38.1]} 34. Rg1 {[%clk 0:00:06.9]} 34... c4 {[%clk
0:00:35.6]} 35. dxc4 {[%clk 0:00:06.3]} 35... Rxc4 {[%clk 0:00:34.5]} 36. Kd2
{[%clk 0:00:06.9]} 36... Rb4 {[%clk 0:00:26.3]} 37. Rg6 {[%clk 0:00:06.2]} 37...
Rb2+ {[%clk 0:00:23.1]} 38. Kc1 {[%clk 0:00:06.3]} 38... Rxh2 {[%clk 0:00:21.3]}
39. Rxf6 {[%clk 0:00:06.7]} 39... Kc5 {[%clk 0:00:12.5]} 40. Bf5 {[%clk
0:00:02.1]} 40... Rg8 {[%clk 0:00:10.4]} 41. Rg6 {[%clk 0:00:01.3]} 41... Rxg6
{[%clk 0:00:05.8]} 42. Bxg6 {[%clk 0:00:02.2]} 42... d3 {[%clk 0:00:06.3]} 0-1